Cogmind - Beta 16 @@@ ROGUE MODE // 2026.01.24 @ 12:50:23 Player: YoKa Result: Destroyed by G-34 Mercenary with Small Laser Performance ------------- Evolutions (1) 500 Regions Visited (3) 600 Robots Destroyed (41) 205 Value Destroyed (789) 789 Prototype IDs (0) 0 Alien Tech Used (0) 0 Bonus (46) 46 TOTAL SCORE: 2140 Bonus ------- High Alert Combat Kills 46 Cogmind --------- Core Integrity 0/400 Matter 51/300 Energy 245/250 System Corruption 0% Temperature Cool (15) Movement Core (250) Ox4 Location -9/Materials Parts ------- > --- POWER (1) -------- Ion Engine > --- PROPULSION (3) --- (None) > --- UTILITY (3) ------ Small Storage Unit Visual Processing Unit Improved Terrain Scanner > --- WEAPON (2) ------- Hammer > --- INVENTORY (8) ---- Ion Engine Beam Cannon Shock Bomb Launcher Shock Bomb Launcher Shock Bomb Launcher Grenade Launcher Rocket Launcher Peak State ------------ > --- POWER ------------ Ion Engine > --- PROPULSION ------- Light Treads Light Treads Light Treads > --- UTILITY ---------- Small Storage Unit Visual Processing Unit Improved Terrain Scanner > --- WEAPON ----------- Rocket Launcher Hammer > --- INVENTORY -------- Ion Engine Beam Cannon Shock Bomb Launcher Shock Bomb Launcher Shock Bomb Launcher Grenade Launcher Rocket Launcher [Rating: 14] Favorites ----------- Power Ion Engine Engine Ion Engine Propulsion Aluminum Leg Treads Light Treads Leg Aluminum Leg Utility Small Storage Unit Device Improved Terrain Scanner Storage Small Storage Unit Processor Visual Processing Unit Weapon Hammer Energy Gun EM Pulse Gun Energy Cannon Beam Cannon Ballistic Gun Light Assault Rifle Launcher Rocket Launcher Impact Weapon Hammer Build | -11 -10 -10 -9 ------- Run | Yrd Mat Min Mat Slots Evolved 2 | . . . 2 Power . | . . . . Propulsion 1 | . . . 1 Utility 1 | . . . 1 Weapon . | . . . . Parts Attached 19 | 6 4 . 9 Power 3 | 1 . . 2 Engine 3 | 1 . . 2 Core . | . . . . Reactor . | . . . . Propulsion 6 | 2 . . 4 Treads 3 | . . . 3 Leg 3 | 2 . . 1 Wheel . | . . . . Hover . | . . . . Flight . | . . . . Utility 3 | 1 1 . 1 Device 1 | . . . 1 Storage 1 | 1 . . . Processor 1 | . 1 . . Hackware . | . . . . Protection . | . . . . Artifact . | . . . . Weapon 7 | 2 3 . 2 Energy Gun 1 | 1 . . . Energy Cannon 1 | . 1 . . Ballistic Gun 1 | 1 . . . Ballistic Cannon . | . . . . Launcher 3 | . 1 . 2 Special Weapon . | . . . . Impact Weapon 1 | . 1 . . Slashing Weapon . | . . . . Piercing Weapon . | . . . . Special Melee Weapon . | . . . . Unidentified Prototypes . | . . . . Parts Lost 10 | . . . 10 Power 2 | . . . 2 Propulsion 5 | . . . 5 Utility . | . . . . Weapon 3 | . . . 3 Highest Loss Streak 3 | . . . 3 To Critical Strikes . | . . . . Average Backups 5 | 3 7 7 5 Power . | . 1 1 . Propulsion 2 | 2 3 2 1 Utility . | . . . . Weapon 2 | . 2 4 3 Tool/Special . | . . . . Unused Backups 8 | . 2 . 6 Power 1 | . . . 1 Propulsion 2 | . 2 . . Utility . | . . . . Weapon 5 | . . . 5 Tool/Special . | . . . . Average Slot Usage (%) 79 | . 89 100 74 Engine 11 | . 14 14 9 Treads 8 | . . . 13 Leg 14 | . 28 28 7 Storage 12 | . 14 14 11 Processor 8 | . 4 14 11 Energy Gun 5 | . 14 14 1 Energy Cannon 2 | . 6 . . Launcher 5 | . . 14 7 Impact Weapon 8 | . 4 . 10 Peak Build Rating 14 | 6 8 8 14 Average Rating 7 | 4 6 8 8 On Entrance 5 | . 6 8 8 Avg Prop Armor Cover (%) . | . . . . Naked Turns . | . . . . Heaviest Build 17 | 13 15 15 17 Greatest Support 60 | 20 20 20 60 Greatest Overweight (x) 3 | 3 . . 1 Average Overweight (x) . | . . . . Largest Inventory Capacity 8 | 8 8 8 8 Average Capacity 7 | 7 8 8 8 Most Carried 8 | 7 8 7 8 Average Carried 5 | 3 7 7 5 Final Capacity 8 | 8 8 8 8 Final Carried 7 | 6 7 7 7 Class Distribution -------------------- 100% | Mutant Dominant Class ---------------- Mutant | -10/Materials Mutant | -10/Mines Mutant | -9/Materials Resources | -11 -10 -10 -9 ----------- Run | Yrd Mat Min Mat Matter Collected 585 | 260 50 . 275 Remotely . | . . . . Salvage Created 917 | . 131 . 786 Parts 49 | . 10 . 39 Haulers Intercepted . | . . . . Recyclers Shooed 2 | . . . 2 Parts Field Recycled . | . . . . Retrieved Matter . | . . . . Parts Self-Destructed . | . . . . Prevented . | . . . . Parts Restored . | . . . . Kills | -11 -10 -10 -9 ------- Run | Yrd Mat Min Mat Combat Hostiles Destroyed 22 | . 3 . 19 Melee 1 | . . . 1 Guns 3 | . 3 . . Cannons 2 | . . . 2 AOE 12 | . . . 12 Classes Destroyed 9 | . 4 . 5 Worker 4 | . . . 4 Builder 5 | . . . 5 Tunneler 1 | . . . 1 Recycler 4 | . . . 4 Operator 4 | . 2 . 2 Watcher 1 | . 1 . . Swarmer 9 | . 2 . 7 Grunt 9 | . 1 . 8 Sentry 4 | . . . 4 Best Kill Streak 8 | . 3 . 8 Combat Bots Only 5 | . 2 . 5 Max Kills in Single Turn 4 | . 1 . 4 Gunslinging . | . . . . Exploded 4 | . . . 4 Melee 1 | . . . 1 Uniques/NPCs Destroyed . | . . . . Combat | -11 -10 -10 -9 -------- Run | Yrd Mat Min Mat Hostile Shots Fired 178 | . 24 . 154 Missed 52 | . 11 . 41 Hits 126 | . 13 . 113 Projectile 126 | . 13 . 113 Critical Strikes 1 | . . . 1 Damage Taken 1592 | . 123 . 1469 Core 441 | . 33 . 408 Absorbed by Shields . | . . . . Core Remaining (%) 93 | 100 . 86 . Volleys Fired 72 | . 22 . 50 Largest 1 | . 1 . 1 Hottest 60 | . 60 . 60 Shots Fired 72 | . 22 . 50 Gun 22 | . 18 . 4 Cannon 11 | . 4 . 7 Launcher 39 | . . . 39 Special . | . . . . Kinetic . | . . . . Thermal 11 | . 4 . 7 Explosive 39 | . . . 39 Electromagnetic 22 | . 18 . 4 Robot Hit Streak 6 | . 3 . 6 Robot Miss Streak 4 | . 2 . 4 Penetration Max . | . . . . Secondary Targets . | . . . . Shots Hit Robots 62 | . 11 . 51 Core Hits 43 | . 5 . 38 Critical Kills . | . . . . Critical Parts Destroyed 4 | . . . 4 Critical Strikes 4 | . . . 4 Smash 4 | . . . 4 Melee Attacks 38 | . 4 . 34 Impact 38 | . 4 . 34 Slashing . | . . . . Piercing . | . . . . Sneak Attacks 7 | . 2 . 5 Combat Hostiles . | . . . . Follow-up Attacks . | . . . . Damage Inflicted 2773 | . 279 . 2494 Guns 181 | . 140 . 41 Cannons 105 | . . . 105 Explosions 1599 | . 53 . 1546 Melee 888 | . 86 . 802 Ramming . | . . . . Kinetic . | . . . . Thermal 158 | . 53 . 105 Explosive 1546 | . . . 1546 Electromagnetic 181 | . 140 . 41 Impact 888 | . 86 . 802 Slashing . | . . . . Piercing . | . . . . Highest Corruption 2 | . 2 2 . Average Corruption 2 | . 2 2 . Corruption Purged . | . . . . Corruption Blocked . | . . . . Overload Shots . | . . . . Overflow Damage 277 | . 64 . 213 Projectiles . | . . . . Explosions 20 | . . . 20 Melee 257 | . 64 . 193 Knockbacks 6 | . 1 . 5 Impact 5 | . 1 . 4 Kinetic . | . . . . Secondary 1 | . . . 1 Self-Inflicted Damage 58 | . . . 58 Shots 3 | . . . 3 Rammed . | . . . . Targets Rammed . | . . . . Kicked . | . . . . Crushed . | . . . . Highest Temperature 116 | . 40 . 116 Average Temperature 31 | . 20 . 39 Received Heat Transfer 705 | . 27 . 678 Siege Activations . | . . . . Martial Activations . | . . . . Shielding Activations . | . . . . Robots Disrupted . | . . . . Combat Hostiles . | . . . . Robots Corrupted 7 | . 1 . 6 Combat Hostiles 4 | . . . 4 Parts Fried 13 | . 2 . 11 Impact Corruptions 13 | . 4 . 9 Robots Melted . | . . . . Combat Hostiles . | . . . . Parts Melted . | . . . . Heat Transferred 322 | . 100 . 222 Parts Sabotaged . | . . . . Parts Stolen . | . . . . Parts Stripped . | . . . . Power Chain Reactions 1 | . 1 . . Alert | -11 -10 -10 -9 ------- Run | Yrd Mat Min Mat Maximum Alert Level 2 | . . . 2 Low Security (%) 58 | 100 100 100 33 Level 1 5 | . . . 8 Level 2 35 | . . . 57 Level 3 . | . . . . Level 4 . | . . . . Level 5 . | . . . . High Security . | . . . . Max Security . | . . . . Peak Influence 587 | . 40 13 587 Initial 13 | . . 13 4 Average 213 | . 6 13 340 Influence Increases 1103 | . 110 . 993 Destroy 0b10 Robot/C 440 | . 60 . 380 Destroy 0b10 Robot/NC 95 | . 15 . 80 Destroy Leader 102 | . 12 . 90 Successful Hack 24 | . 6 . 18 Disable Machine 90 | . . . 90 Destroy Structure 247 | . 2 . 245 Lose Combat Pursuer 105 | . 15 . 90 Influence Decreases 561 | . 74 23 464 Entered New Map 32 | . . 23 9 Time Decay 439 | . 74 . 365 Lost Part 90 | . . . 90 Squads Dispatched 5 | . 2 . 3 Investigation . | . . . . Extermination . | . . . . Reinforcement 4 | . 2 . 2 Assault 1 | . . . 1 Garrison . | . . . . Intercept . | . . . . Searches Triggered . | . . . . Construction Impeded 1 | . . . 1 Haulers Reinforced . | . . . . Active Scanning Responses . | . . . . Cargo Convoy Interrupts . | . . . . Stealth | -11 -10 -10 -9 --------- Run | Yrd Mat Min Mat Distress Signals 2 | . 1 . 1 Communications Jammed . | . . . . Distress Signals . | . . . . Times Spotted 56 | . 16 . 40 Peak Tracking Total 8 | . 5 . 8 Tactical Retreats 5 | . 1 . 4 Traps | -11 -10 -10 -9 ------- Run | Yrd Mat Min Mat Traps Triggered 1 | . 1 . . Indirectly . | . . . . Trap Hack Attempts . | . . . . Triggered . | . . . . Disarmed . | . . . . Reprogrammed . | . . . . Reused . | . . . . Traps Extracted . | . . . . Installed . | . . . . Triggered . | . . . . Machines | -11 -10 -10 -9 ---------- Run | Yrd Mat Min Mat Machines Disabled 6 | . . . 6 Max in Single Turn 2 | . . . 2 Machines Repaired . | . . . . Machines Dismantled . | . . . . Machines Sabotaged . | . . . . Overloaded Fab Kills . | . . . . Hacking | -11 -10 -10 -9 --------- Run | Yrd Mat Min Mat Machines Accessed 5 | . 2 . 3 Terminals 5 | . 2 . 3 Fabricators . | . . . . Repair Stations . | . . . . Recycling Units . | . . . . Scanalyzers . | . . . . Garrison Access . | . . . . Total Hacks 14 | . 5 . 9 Successful 5 | . 2 . 3 Failed 9 | . 3 . 6 Catastrophic 3 | . 1 . 2 Database Lockouts . | . . . . Manual 14 | . 5 . 9 Terminals 14 | . 5 . 9 Fabricators . | . . . . Repair Stations . | . . . . Recycling Units . | . . . . Scanalyzers . | . . . . Garrison Access . | . . . . Terminal Hacks . | . . . . Fabricator Hacks . | . . . . Repair Station Hacks . | . . . . Recycling Unit Hacks . | . . . . Scanalyzer . | . . . . Garrison Access Hacks . | . . . . Unauthorized Hacks 5 | . 2 . 3 Terminals 5 | . 2 . 3 Assimilate 3 | . 1 . 2 Operators 2 | . 1 . 1 Fabricators . | . . . . Repair Stations . | . . . . Recycling Units . | . . . . Scanalyzers . | . . . . Garrison Access . | . . . . Data Cores Recovered . | . . . . Used . | . . . . Hacking Detections 4 | . 1 . 3 Full Trace Events 1 | . . . 1 Feedback Events . | . . . . Feedback Blocked . | . . . . Robot Schematics Acquired . | . . . . Robots Built . | . . . . Authchips . | . . . . Time . | . . . . Total Robot Build Rating . | . . . . Part Schematics Acquired . | . . . . Parts Built . | . . . . Authchips . | . . . . Time . | . . . . Total Part Build Rating . | . . . . Part Studies Acquired . | . . . . Parts Repaired . | . . . . Time . | . . . . Parts Recycled . | . . . . Recycled Matter . | . . . . Retrieved Matter . | . . . . Retrieved Components . | . . . . Parts Scanalyzed . | . . . . Part Schematics Acquired . | . . . . Parts Damaged . | . . . . Bothacking | -11 -10 -10 -9 ------------ Run | Yrd Mat Min Mat Used RIF Installer . | . . . . Robots Hacked . | . . . . Non-combat . | . . . . Combat . | . . . . Robot Hacks Applied . | . . . . Relay Couplers Released . | . . . . Fabnet Peak Effective % . | . . . . Robots Rewired . | . . . . Allies Hacked . | . . . . Hacks Repelled . | . . . . Allies | -11 -10 -10 -9 -------- Run | Yrd Mat Min Mat Total Allies 1 | . . . 1 Largest Group 1 | . . . 1 Highest-Rated Group 10 | . . . 10 Highest-Rated Ally 10 | . . . 10 Total Orders . | . . . . Ally Attacks . | . . . . Total Damage . | . . . . Kills . | . . . . Allies Corrupted . | . . . . Allies Melted . | . . . . Intel | -11 -10 -10 -9 ------- Run | Yrd Mat Min Mat Active Infowar (turns) 1109 | . 146 14 949 Optics 1109 | . 146 14 949 Terrain 110 | . . . 110 Robot Analysis Total . | . . . . Derelict Logs Recovered . | . . . . Drone Launches . | . . . . Drone Recoveries . | . . . . Exploration | -11 -10 -10 -9 ------------- Run | Yrd Mat Min Mat Turns Passed 1528 | 94 471 14 949 Spaces Moved 795 | 52 299 12 432 Core 11 | 11 . . . Treads 224 | . . . 224 Legs 560 | 41 299 12 208 Wheels . | . . . . Hover . | . . . . Flight . | . . . . Fastest Speed 50 | 50 120 120 120 Average Speed 142 | 147 120 120 158 Slowest Speed 200 | 200 120 120 190 Overloaded Moves . | . . . . Propulsion Burnouts . | . . . . Robots Hopped . | . . . . Potential Cave-ins . | . . . . Cave-ins Triggered . | . . . . Exploration Rate (%) 22 | 4 44 8 32 Regions Visited 3 Branch Regions 1 Pre-discovered Areas . | . . . . Known Exits Taken . | . . . . Unknown Exits Taken 3 | 1 1 1 . Scrap Searched . | . . . . Spaces Dug 9 | . . . 9 Terrain Destroyed 320 | . 2 . 318 Melee 1 | . . . 1 Projectile . | . . . . AOE 319 | . 2 . 317 Terrain Rammed . | . . . . Walls Destroyed . | . . . . Machines Disabled . | . . . . Actions | -11 -10 -10 -9 --------- Run | Yrd Mat Min Mat Total 1048 | 69 380 11 588 Wait 90 | . 45 . 45 Move 792 | 51 298 11 432 Hop . | . . . . Pick Up 26 | 12 3 . 11 Fast Attach 1 | . 1 . . Attach 15 | 6 . . 9 Detach . | . . . . Swap 9 | . 5 . 4 Drop 5 | . 2 . 3 Fire 72 | . 22 . 50 Melee 38 | . 4 . 34 Ram . | . . . . Kick . | . . . . Crush . | . . . . Escape Stasis . | . . . . Rewire . | . . . . Trap . | . . . . Miscellaneous . | . . . . Route ------- -11/Scrapyard -10/Materials (discovered 2 exits: [*Min x2]) -10/Mines -9/Materials History --------- Turn | Location | Event 40 | -11/Scrapyard | Discovered new exit (range 15) 95 | -11/Scrapyard | Entered Materials 95 | -10/Materials | Discovered new exit (range 8) 148 | -10/Materials | Discovered new exit (range 8) 302 | -10/Materials | Build established: Mutant 566 | -10/Materials | Entered Mines 570 | -10/Mines | Discovered new exit (range 8) 580 | -10/Mines | Entered Materials 580 | -9/Materials | Evolved 2 slots: Propulsion x1, Utility x1 759 | -9/Materials | Lost 3 parts (1p1n1w) 988 | -9/Materials | Core integrity fell below 50% 1380 | -9/Materials | First assault squad dispatched 1468 | -9/Materials | Core integrity fell below 20% 1508 | -9/Materials | Lost 3 parts (2n1w) 1529 | -9/Materials | Destroyed by G-34 Mercenary with Small Laser Last Messages --------------- Acquired 9 matter. C-45 Heavy ARC bursts open, deploying its payload. G-47 Trooper unfolds itself. G-34 Mercenary unfolds itself. I-25 Savior unfolds itself. Rocket Launcher destroyed. Lgt. Treads destroyed. The unstable cave ceiling collapses. K-01 Serf collects debris. The unstable cave ceiling collapses. Lgt. Treads destroyed. G-34 Mercenary suffers critical hit (Smash). Destroyed Aluminum Leg. G-34 Mercenary system corrupted by crushing effect. G-34 Mercenary system terminally corrupted. Aluminum Leg fried. Sml. Laser fried. G-34 Mercenary knocked back. Map ----- +----------------------------------------------------+ | ??????????? """ [?## ##### # #??? | | ??????????? """ ### ########### #??? | | ??????????? """ + ## ####??? | | ?????????????? ### ##?? | | ??????????????##### # # #??? | | ??????????????#?#?## # # # #??? | | ???????????????????### # ###?? | | ???????????######### # ## ##???? | | ???????????# # + # ##### | | ???????????# ## ## | | ???????????# ## ## | | ???????????# """ """ *# #+####### | | ???????????# """ """ = ####### | | ???????????# """ """ ! % / | | ???????????# # ########## | | ?????#?????# ###???????# | | ???????#???# # ### # #?#??#??# | | ??????#????# ## ## ##?#?????# | | ??????#?#?## ##############+# | | ?????#????# | | ??#????#??## # # ######### | | ???????????# ## ##### ##??????# | | ???#???????# #### # ###???????###### | | ???????????## #??### ##???????#????#?? | | ????????????# ####?#######??????????#??? | | ????????#####ig%@!##????????????????????? | | ????????#!! g !##???????#???????????? | | ????????#! g !#????????????#???#??#? | | ????????#] !#????????????????????? | | ????????# !#??#?????????????????? | | ????????#!! !##????#?#?????????#???? | | ????????#!! #######???????????????#?????? | | ????????#####??????#???#????????????????? | | ???????????#???#?????????#??????????????? | | ???????????#???????????????????????? ???? | | ????????????????????????????#???????????? | | ??????????????????????#?????????????????? | | ?????????#????#?????????????????????????? | | ????????????????????????????????????????? | | ????????????????????????????????????????? | | ????????????????????????????????????????? | | ????????????????????????????????????????? | | | | | | | | | | | | | | | | | +----------------------------------------------------+ Best States ------------- Heat Dissipation 28 Energy Generation 10 Energy Capacity 250 Matter Stores 300 Matter Capacity 300 Sight Range 18 Terrain Scan Range 16 Terrain Scan Density 10 Evasion (%) 55 Recoil Reduction 3 Item Schematics ----------------- None Robot Schematics ------------------ None Fabricated ------------ Nothing Repaired ---------- Nothing Studied --------- None Alien Tech Used ----------------- None Achievements -------------- None Challenges ------------ None Game ------ Seed SuspensionResetTerrabomb Manual? 0 Play Time 00:13:34 Cumulative 17.5 hours Start 2026.01.24 @ 12:37:20 End 2026.01.24 @ 12:50:23 Sessions 1 Manual Loads 0 Difficulty Rogue Special Mode None Game No. 29 Rogue 29 Adventurer 0 Explorer 0 Win Type - Total 0 Types 0/0/0/0/0/0/0/0/0/0 Lore% 13 Gallery% 21 Achievement% 19 Wizard Run 0 Options --------- Layout 2 ASCII 0 Keyboard 0 Movement Mouse Keybinds 0 Fullscreen 1 Font 24/Smallcaps Map View 50x44 Zoom Use 0% Tactical HUD 0 Map Filters NONE Filters NONE Steam 1 RUN: 32df45fc-728d-4f05-bb6e-b86c81bcdddf